bitfinex-derivatives/quotes_BTCF0:USTF0_20240925
["timestamp","ask_amount","ask_price","bid_price","bid_amount"]
[1727234446272,0.169794,64269.0,64268.0,0.21226743]
[1727234448672,0.21620824,64269.0,64268.0,0.25118248]
[1727234448868,0.169794,64269.0,64268.0,0.25118248]
[1727234449368,0.21620824,64269.0,64268.0,0.25118248]
[1727234449763,0.169794,64269.0,64268.0,0.25118248]
[1727234450174,0.169794,64269.0,64268.0,0.22686106]
[1727234450375,0.21620824,64269.0,64268.0,0.2511824]
[1727234450672,0.169794,64269.0,64268.0,0.2511824]
[1727234451369,0.169794,64269.0,64268.0,0.25118244]
[1727234452266,0.169794,64269.0,64268.0,0.32898414]
[1727234452462,0.169794,64269.0,64268.0,0.17338744]
[1727234452669,0.247588,64269.0,64268.0,0.0486428]
[1727234452974,0.247588,64269.0,64266.0,0.07780308]
[1727234452975,0.077796,64267.0,64266.0,0.07780308]
[1727234453167,0.12420793,64267.0,64266.0,0.10212679]
[1727234453470,0.12420793,64267.0,64266.0,0.04864742]
[1727234454267,0.077797,64266.0,64265.0,0.07780308]
[1727234454477,0.167797,64266.0,64265.0,0.1264506]
[1727234454663,0.167797,64266.0,64265.0,0.04864752]
[1727234454974,0.21419505,64266.0,64265.0,0.04864752]
[1727234455473,0.168797,64266.0,64265.0,0.04864752]
[1727234456367,0.168797,64266.0,64264.0,0.07780308]
[1727234456368,0.077798,64265.0,64264.0,0.07780308]
[1727234456571,0.077798,64265.0,64264.0,0.12645076]
[1727234456969,0.077798,64265.0,64264.0,0.04864768]
[1727234457270,0.12419605,64265.0,64264.0,0.04864882]
[1727234457574,0.078798,64265.0,64264.0,0.04864881]
[1727234458473,0.078798,64265.0,64264.0,0.02432384]
[1727234458974,0.079798,64265.0,64264.0,0.02432384]
[1727234459881,0.077801,64263.0,64262.0,0.07780308]
[1727234460061,0.167801,64263.0,64262.0,0.21254625]
[1727234460575,0.167801,64263.0,64262.0,0.13474317]
[1727234460960,0.168801,64263.0,64262.0,0.13474317]
[1727234461169,0.168801,64263.0,64262.0,0.21248409]
[1727234461766,0.168801,64263.0,64262.0,0.21237458]
[1727234461999,0.168801,64263.0,64262.0,0.18804868]
[1727234462167,0.168801,64263.0,64262.0,0.12638862]
[1727234462565,0.168801,64263.0,64262.0,0.12638897]
[1727234462774,0.169801,64263.0,64262.0,0.21240816]
[1727234463185,0.169801,64263.0,64262.0,0.12638897]
[1727234463480,0.169801,64263.0,64262.0,0.04864837]
[1727234463672,0.002,64263.0,64262.0,0.57295743]
[1727234463980,0.002,64263.0,64262.0,0.61187426]
[1727234465276,0.079801,64263.0,64262.0,0.61187426]
[1727234465491,0.079801,64263.0,64262.0,0.52430906]
[1727234465671,0.079801,64263.0,64262.0,0.32880271]
[1727234465973,0.079801,64263.0,64262.0,0.57295624]
[1727234466170,0.079801,64263.0,64262.0,0.61187445]
[1727234467174,0.079801,64263.0,64262.0,0.61187415]
[1727234467381,0.079801,64263.0,64262.0,0.58755053]
[1727234467680,0.079801,64263.0,64262.0,0.04864728]
[1727234469378,0.079801,64263.0,64259.0,0.07772763]
[1727234469379,0.077805,64260.0,64259.0,0.07772763]
[1727234469577,0.167805,64260.0,64259.0,0.11025476]
[1727234469875,0.167805,64260.0,64259.0,0.13458]
[1727234470782,0.168805,64260.0,64259.0,0.13457922]
[1727234471575,0.169805,64260.0,64259.0,0.13457922]
[1727234472472,0.169805,64260.0,64259.0,0.0486497]
[1727234472790,0.169805,64260.0,64259.0,0.02432446]
[1727234472979,0.169805,64260.0,64259.0,0.04864892]
[1727234473589,0.077806,64259.0,64258.0,0.077806]
[1727234473976,0.167806,64259.0,64258.0,0.12645608]
[1727234474780,0.168806,64259.0,64258.0,0.12645608]
[1727234475083,0.169806,64259.0,64258.0,0.21235424]
[1727234475681,0.169806,64259.0,64258.0,0.2755981]
[1727234475874,0.169806,64259.0,64258.0,0.21235424]
[1727234476069,0.169806,64259.0,64258.0,0.14104995]
[1727234476273,0.169806,64259.0,64258.0,0.14104922]
[1727234476885,0.169806,64259.0,64258.0,0.1410501]
[1727234477387,0.092,64259.0,64258.0,0.1410501]
[1727234477577,0.092,64259.0,64258.0,0.16537419]
[1727234477883,0.002,64259.0,64258.0,0.16537419]
[1727234478185,0.002,64259.0,64258.0,0.10213003]
[1727234478372,0.002,64259.0,64258.0,0.1653725]
[1727234478886,0.002,64259.0,64258.0,0.20429118]
[1727234481677,0.002,64259.0,64258.0,0.20429011]
[1727234482484,0.002,64259.0,64258.0,0.29016012]
[1727234482690,0.002,64259.0,64258.0,0.39251022]
[1727234483081,0.41077727,64268.0,64258.0,0.39251022]
[1727234483281,0.41077727,64268.0,64267.0,0.077796]
[1727234483484,0.49717727,64268.0,64267.0,0.24315026]
[1727234483790,0.09,64268.0,64267.0,0.17343433]
[1727234484188,0.09,64268.0,64267.0,0.26674596]
[1727234484388,0.092,64268.0,64267.0,0.26674596]
[1727234484890,0.091,64268.0,64267.0,0.26674596]
[1727234485092,0.092,64268.0,64267.0,0.26674596]
[1727234485389,0.169795,64268.0,64267.0,0.34454196]
[1727234485984,0.092,64268.0,64267.0,0.34454196]
[1727234486180,0.092,64268.0,64267.0,0.25123033]
[1727234486387,0.092,64268.0,64267.0,0.34454196]
[1727234486589,0.092,64268.0,64267.0,0.2901447]
[1727234487092,0.002,64268.0,64267.0,0.2901447]
[1727234487487,0.002,64268.0,64267.0,0.74425633]
[1727234487688,0.002,64268.0,64267.0,0.6509447]
[1727234488087,0.002,64268.0,64267.0,0.65055538]
[1727234489084,0.12119798,64275.0,64274.0,0.077788]
[1727234489085,0.03119798,64275.0,64274.0,0.077788]
[1727234489391,0.03119798,64275.0,64274.0,0.16535323]
[1727234489392,0.02759798,64275.0,64274.0,0.16535323]
[1727234489591,0.09,64277.0,64276.0,0.077785]
[1727234489791,0.09,64277.0,64276.0,0.14102771]
[1727234490094,0.04637727,64279.0,64278.0,0.077783]
[1727234490297,0.0315,64283.0,64282.0,0.077778]
[1727234490497,0.1215,64283.0,64282.0,0.14102071]
[1727234490788,0.1215,64283.0,64282.0,0.10210203]
[1727234490977,0.14974056,64283.0,64282.0,0.10210203]
[1727234492886,0.14974056,64283.0,64282.0,0.10310203]
[1727234493088,0.14974056,64283.0,64282.0,0.10510203]
[1727234493289,0.22751756,64283.0,64282.0,0.02732403]
[1727234494818,0.22751756,64283.0,64282.0,0.003]
[1727234494997,0.13751756,64283.0,64282.0,0.003]
[1727234495324,0.22751756,64283.0,64282.0,0.02731811]
[1727234495604,0.22751756,64283.0,64282.0,0.003]
[1727234496106,0.13751756,64283.0,64282.0,0.003]
[1727234496300,0.14974056,64283.0,64282.0,0.003]
[1727234496702,0.14974056,64283.0,64282.0,0.080778]
[1727234496899,0.14974056,64283.0,64282.0,0.10509534]
[1727234497087,0.11824056,64283.0,64282.0,0.10509534]
[1727234497497,0.11824056,64283.0,64282.0,0.080778]
[1727234497791,0.11824056,64283.0,64282.0,0.15166092]
[1727234497991,0.02824056,64283.0,64282.0,0.15166092]
[1727234498288,0.3608,64285.0,64282.0,0.07388292]
[1727234498487,0.4508,64285.0,64282.0,0.04956625]
[1727234498690,0.0036,64291.0,64290.0,0.077768]
[1727234498902,0.02784685,64291.0,64290.0,0.02431421]
[1727234499102,0.167761,64297.0,64290.0,0.07082976]
[1727234499294,0.09,64297.0,64295.0,0.077762]
[1727234499697,0.0644,64300.0,64296.0,0.09]
[1727234500000,0.03077731,64299.0,64297.0,0.02431208]
[1727234500298,0.03077731,64299.0,64296.0,0.4508]
[1727234500299,0.00233375,64299.0,64298.0,0.14858663]
[1727234500891,0.00733375,64299.0,64298.0,0.14858663]
[1727234501087,0.00733375,64299.0,64298.0,0.10207108]
[1727234501315,0.005,64299.0,64298.0,0.077759]
[1727234501500,0.005,64299.0,64298.0,0.10206829]
[1727234502304,0.005,64299.0,64298.0,0.14848656]
[1727234503191,0.005,64299.0,64298.0,0.10406829]
[1727234503397,0.09,64304.0,64302.0,0.077753]
[1727234503593,0.09,64304.0,64303.0,0.077752]
[1727234503899,0.1181751,64307.0,64306.0,0.077749]
[1727234504096,0.09,64307.0,64306.0,0.077749]
[1727234504610,0.15183636,64307.0,64306.0,0.077749]
[1727234505002,0.15183636,64307.0,64303.0,0.077752]
[1727234505207,0.09,64304.0,64303.0,0.077752]
[1727234505594,0.13612881,64304.0,64303.0,0.077752]
[1727234506296,0.09,64304.0,64303.0,0.077752]
[1727234506497,0.092,64304.0,64303.0,0.077752]
[1727234506894,0.13812881,64304.0,64303.0,0.077752]
[1727234507103,0.13612881,64304.0,64303.0,0.077752]
[1727234507303,0.095,64304.0,64303.0,0.077752]
[1727234518111,0.095,64304.0,64302.0,0.3608]
[1727234519110,0.077752,64303.0,64302.0,0.3608]
[1727234520317,0.13958836,64303.0,64302.0,0.3608]
[1727234520809,0.14258836,64303.0,64302.0,0.3608]
[1727234521407,0.080752,64303.0,64302.0,0.3608]
[1727234522625,0.170752,64303.0,64302.0,0.3608]
[1727234525212,0.24804745,64303.0,64302.0,0.3608]
[1727234525608,0.24804745,64303.0,64299.0,0.077757]
[1727234525609,0.077754,64302.0,64299.0,0.077757]
[1727234526217,0.077756,64301.0,64299.0,0.077757]
[1727234526719,0.077756,64301.0,64300.0,0.0621194]
[1727234527220,0.077756,64301.0,64299.0,0.078757]
[1727234527221,0.077756,64301.0,64299.0,0.081757]
[1727234527716,0.077756,64301.0,64299.0,0.078757]
[1727234527917,0.077756,64301.0,64299.0,0.081757]
[1727234528317,0.077756,64301.0,64299.0,0.15945134]
[1727234529220,0.077756,64301.0,64300.0,0.08457289]
[1727234530508,0.077756,64301.0,64300.0,0.08557289]
[1727234531124,0.077756,64301.0,64300.0,0.1633041]
[1727234533311,0.13626391,64303.0,64300.0,0.1633041]
[1727234533616,0.04626391,64304.0,64302.0,0.07772566]
[1727234533814,0.04626391,64306.0,64305.0,0.07775]
[1727234534015,0.04626391,64309.0,64308.0,0.077746]
[1727234534320,0.04626391,64312.0,64311.0,0.077743]
[1727234535424,0.077739,64314.0,64312.0,0.077741]
[1727234535628,0.12400291,64314.0,64312.0,0.077741]
[1727234536325,0.07774,64313.0,64312.0,0.077741]
[1727234537529,0.08874,64313.0,64312.0,0.077741]
[1727234539030,0.10074,64313.0,64312.0,0.077741]
[1727234540817,0.10074,64313.0,64312.0,0.10204715]
[1727234542417,0.023,64313.0,64312.0,0.10204715]
[1727234544616,0.023,64313.0,64312.0,0.19204715]
[1727234544840,0.023,64313.0,64312.0,0.167741]
[1727234545020,0.023,64313.0,64312.0,0.50300805]
[1727234545221,0.00233297,64316.0,64315.0,0.077738]
[1727234545421,0.00233297,64316.0,64315.0,0.55284181]
[1727234545620,0.0462765,64318.0,64317.0,0.077736]
[1727234545827,0.1362765,64318.0,64317.0,0.10203981]
[1727234546024,0.09,64318.0,64317.0,0.33647881]
[1727234546620,0.167734,64318.0,64317.0,0.02430381]
[1727234547933,0.167734,64318.0,64317.0,0.02530381]
[1727234547934,0.177734,64318.0,64317.0,0.02530381]
[1727234548325,0.087734,64318.0,64317.0,0.02530381]
[1727234548537,0.098734,64318.0,64317.0,0.02630381]
[1727234548728,0.098734,64318.0,64317.0,0.002]
[1727234549030,0.098734,64318.0,64317.0,0.02630426]
[1727234551547,0.098734,64318.0,64317.0,0.02630332]
[1727234553931,0.021,64318.0,64317.0,0.10403932]
[1727234555331,0.12881306,64318.0,64315.0,0.3608]
[1727234555633,0.08421527,64317.0,64316.0,0.23349503]
[1727234556036,0.08421527,64317.0,64316.0,0.31123203]
[1727234557030,0.09321527,64317.0,64316.0,0.31223203]
[1727234557233,0.09239267,64317.0,64316.0,0.31223203]
[1727234557427,0.009,64317.0,64316.0,0.31223203]
[1727234558458,0.009,64317.0,64316.0,0.37430785]
[1727234558459,0.086736,64317.0,64316.0,0.37430785]
[1727234558940,0.096736,64317.0,64316.0,0.31323203]
[1727234560345,0.096736,64317.0,64316.0,0.37530785]
[1727234560843,0.019,64317.0,64316.0,0.37530785]
[1727234561149,0.019,64317.0,64316.0,0.31323203]
[1727234561445,0.019,64317.0,64316.0,0.37529794]
[1727234561946,0.019,64317.0,64316.0,0.31323203]
[1727234563247,0.096736,64317.0,64316.0,0.29758791]
[1727234563449,0.096736,64317.0,64316.0,0.23549503]
[1727234566351,0.096736,64317.0,64316.0,0.31320414]
[1727234567551,0.096736,64317.0,64316.0,0.32021547]
[1727234568143,0.096736,64317.0,64316.0,0.39795247]
[1727234568352,0.019,64317.0,64316.0,0.39795247]
[1727234571949,0.019,64317.0,64316.0,0.39789652]
[1727234572648,0.04420044,64317.0,64316.0,0.31323203]
[1727234572857,0.1702966,64317.0,64316.0,0.31323203]
[1727234578267,0.17039931,64317.0,64316.0,0.33753541]
[1727234578578,0.17039931,64317.0,64316.0,0.31323203]
[1727234578758,0.17039931,64317.0,64316.0,0.33753567]
[1727234578955,0.17039931,64317.0,64316.0,0.31323203]
[1727234579154,0.17039931,64317.0,64316.0,0.33753578]
[1727234580646,0.019,64317.0,64316.0,0.42220325]
[1727234580863,0.019,64317.0,64316.0,0.42220267]
[1727234581053,0.019,64317.0,64316.0,0.39789892]
[1727234581256,0.019,64317.0,64316.0,0.42220249]
[1727234582650,0.019,64317.0,64316.0,0.48789892]
[1727234583760,0.04635452,64323.0,64316.0,2.00053634]
[1727234584061,0.02847907,64326.0,64322.0,0.4508]
[1727234584261,0.02847907,64326.0,64325.0,0.077726]
[1727234584456,0.04635452,64330.0,64328.0,0.077722]
[1727234584656,0.04635452,64330.0,64329.0,0.077721]
[1727234585054,0.07382157,64332.0,64329.0,0.43849534]
[1727234585254,0.04633418,64333.0,64332.0,0.077717]
[1727234585457,0.3608,64334.0,64333.0,0.077716]
[1727234585758,0.00233228,64335.0,64334.0,0.077715]
[1727234585964,0.00233228,64335.0,64334.0,0.167715]
[1727234586659,0.00233228,64335.0,64334.0,0.198415]
[1727234586863,0.00233228,64335.0,64334.0,0.27611034]
[1727234587070,0.00233228,64335.0,64334.0,0.27711034]
[1727234587071,0.00833228,64335.0,64334.0,0.27711034]
[1727234587263,0.00833228,64335.0,64334.0,0.36088266]
[1727234587566,0.00833228,64335.0,64334.0,0.199415]
[1727234587754,0.00833228,64335.0,64334.0,0.200415]
[1727234589467,0.006,64335.0,64334.0,0.200415]
[1727234589667,0.006,64335.0,64334.0,0.26239293]
[1727234590670,0.006,64335.0,64334.0,0.49419005]
[1727234590859,0.006,64335.0,64334.0,0.43221212]
[1727234591464,0.0036,64342.0,64334.0,0.43221212]
[1727234591465,0.0036,64342.0,64341.0,0.077707]
[1727234591659,0.02755083,64345.0,64341.0,0.077707]
[1727234591660,0.02755083,64345.0,64343.0,0.077704]
[1727234591865,0.0333,64346.0,64344.0,0.09]
[1727234592461,0.077691,64354.0,64344.0,0.4508]
[1727234592655,0.077691,64354.0,64351.0,0.09]
[1727234593360,0.077691,64354.0,64348.0,0.09]
[1727234593773,0.0036,64360.0,64354.0,0.077691]
[1727234594064,0.0036,64360.0,64351.0,0.3608]
[1727234594065,0.077682,64362.0,64359.0,0.09]
[1727234594267,0.438482,64361.0,64356.0,0.167688]
[1727234595168,0.444482,64361.0,64359.0,0.001]
[1727234595673,0.23298781,64360.0,64351.0,0.23455606]
[1727234595966,0.15364702,64353.0,64352.0,0.31014371]
[1727234596175,0.23849213,64353.0,64352.0,0.31014371]
[1727234596366,0.08484511,64353.0,64352.0,0.31014371]
[1727234596566,0.22306961,64353.0,64352.0,0.31014371]
[1727234596767,0.37121231,64353.0,64352.0,0.31014371]
[1727234597479,0.23298781,64353.0,64352.0,0.45014371]
[1727234597673,0.23298781,64353.0,64352.0,0.48204371]
[1727234598073,0.23598781,64353.0,64352.0,0.48204371]
[1727234598470,0.15711248,64353.0,64352.0,0.48204371]
[1727234599980,0.15711248,64353.0,64352.0,0.45014371]
[1727234600777,0.15711248,64353.0,64352.0,0.23245071]
[1727234600979,0.23480448,64353.0,64352.0,0.23245071]
[1727234601190,0.80926157,64353.0,64352.0,0.06437932]
[1727234601382,0.67103707,64353.0,64352.0,0.06437932]
[1727234601677,0.82468409,64353.0,64352.0,0.06437932]
[1727234601871,0.67103707,64353.0,64352.0,0.06437932]
[1727234602380,0.65949679,64353.0,64352.0,0.06437932]
[1727234602586,0.441492,64353.0,64352.0,0.06437932]
[1727234605192,0.080692,64353.0,64352.0,0.06437932]
[1727234608795,0.10864959,64353.0,64352.0,0.06437932]
[1727234610689,0.10864959,64353.0,64346.0,0.14]
[1727234610690,0.25400314,64353.0,64346.0,0.14]
[1727234610886,0.25400314,64353.0,64347.0,0.077699]
[1727234610887,0.10748349,64348.0,64347.0,0.077699]
[1727234611093,0.10748349,64348.0,64347.0,0.31088143]
[1727234611287,0.10748349,64349.0,64348.0,0.077698]
[1727234611591,0.10748349,64350.0,64349.0,0.31153374]
[1727234611918,0.14306728,64350.0,64349.0,0.077697]
[1727234612190,0.14306728,64350.0,64349.0,0.31153374]
[1727234612388,0.14306699,64350.0,64349.0,0.31153374]
[1727234612591,0.14306699,64350.0,64349.0,0.45153374]
[1727234612784,0.07973483,64350.0,64349.0,0.45153374]
[1727234613089,0.13279783,64350.0,64349.0,0.45153374]
[1727234613394,0.0885955,64350.0,64349.0,0.45253374]
[1727234613592,0.14314321,64350.0,64349.0,0.45253374]
[1727234613893,0.49965324,64354.0,64353.0,0.077692]
[1727234614092,0.71444642,64354.0,64353.0,0.217692]
[1727234614493,0.57643318,64354.0,64353.0,0.217692]
[1727234614691,0.71495636,64354.0,64353.0,0.217692]
[1727234615085,0.35815636,64354.0,64353.0,0.217692]
[1727234615689,0.14734544,64354.0,64353.0,0.217692]
[1727234616388,0.14734544,64354.0,64353.0,0.167692]
[1727234617698,0.004,64354.0,64353.0,0.167692]
[1727234618197,0.004,64354.0,64353.0,0.22969455]
[1727234618393,0.004,64354.0,64353.0,0.167692]
[1727234618696,0.004,64354.0,64353.0,0.22969455]
[1727234619598,0.004,64354.0,64353.0,0.167692]
[1727234620388,0.004,64354.0,64353.0,0.077692]
[1727234623599,0.004,64354.0,64353.0,0.15511302]
[1727234624597,0.004,64354.0,64353.0,0.077692]
[1727234625687,0.1482021,64354.0,64352.0,0.17246966]
[1727234625889,0.21701517,64353.0,64352.0,0.17246966]
[1727234626503,0.21701517,64353.0,64352.0,0.25016266]
[1727234626699,0.21701517,64353.0,64352.0,0.077693]
[1727234626898,0.38552061,64353.0,64352.0,0.077693]
[1727234627307,0.38552061,64353.0,64351.0,0.3608]
[1727234627500,0.38552061,64352.0,64351.0,0.3608]
[1727234627902,0.38552061,64352.0,64351.0,0.59298396]
[1727234628094,0.46321361,64352.0,64351.0,0.59298396]
[1727234629101,0.46521361,64352.0,64351.0,0.59298396]
[1727234629305,0.49641361,64352.0,64351.0,0.0611854]
[1727234629605,0.32790817,64352.0,64351.0,0.0611854]
[1727234631900,0.31610083,64352.0,64351.0,0.0611854]
[1727234632509,0.31610083,64352.0,64346.0,0.0036]
[1727234632708,0.31610083,64352.0,64344.0,0.07742102]
[1727234632709,0.3608,64348.0,64344.0,0.07742102]
[1727234632902,0.438498,64348.0,64347.0,0.06210312]
[1727234633101,0.438498,64348.0,64347.0,0.29523317]
[1727234633302,0.438498,64348.0,64347.0,0.06210312]
[1727234633506,0.438498,64348.0,64347.0,0.29487249]
[1727234633710,0.438498,64348.0,64347.0,0.23276937]
[1727234633910,0.438498,64348.0,64347.0,0.29486469]
[1727234634211,0.077699,64347.0,64346.0,0.23676937]
[1727234634398,0.077699,64347.0,64346.0,0.077701]
[1727234634712,0.077699,64347.0,64346.0,0.30962571]
[1727234636811,0.077699,64347.0,64346.0,0.31362571]
[1727234638005,0.077699,64347.0,64346.0,0.31662571]
[1727234640512,0.077699,64347.0,64346.0,0.40662571]
[1727234640705,0.42106092,64347.0,64346.0,0.32889275]
[1727234641015,0.28216589,64347.0,64346.0,0.32889275]
[1727234643018,0.30966243,64347.0,64346.0,0.32889275]
[1727234643414,0.44853424,64347.0,64346.0,0.32889275]
[1727234645818,0.30966243,64347.0,64346.0,0.32889275]
[1727234647705,0.30966243,64347.0,64346.0,0.41949404]
[1727234647706,0.10519554,64347.0,64346.0,0.41949404]
[1727234653318,0.10519554,64347.0,64346.0,0.32949404]
[1727234653926,0.10519554,64347.0,64346.0,0.31651882]
[1727234654130,0.10519554,64347.0,64346.0,0.23889275]
[1727234655321,0.10519554,64347.0,64346.0,0.32889275]
[1727234655528,0.46599554,64347.0,64346.0,0.31651882]
[1727234655727,0.46599554,64347.0,64346.0,0.23889275]
[1727234659727,0.46599554,64347.0,64346.0,0.007]
[1727234660721,0.10519554,64347.0,64346.0,0.007]
[1727234660925,0.46599554,64347.0,64346.0,0.007]
[1727234661314,0.54369454,64347.0,64346.0,0.007]
[1727234661533,0.71084472,64347.0,64346.0,0.007]
[1727234661724,0.65888523,64347.0,64346.0,0.007]
[1727234661930,0.75146545,64347.0,64346.0,0.007]
[1727234662136,0.75151674,64347.0,64346.0,0.007]
[1727234663031,0.75151674,64347.0,64338.0,0.05018349]
[1727234663032,0.077709,64339.0,64338.0,0.00064934]
[1727234663226,0.74301479,64339.0,64338.0,0.00064934]
[1727234663423,0.64017733,64339.0,64338.0,0.00064934]
[1727234663632,0.81000031,64339.0,64338.0,0.00064934]
[1727234663833,0.80987908,64339.0,64338.0,0.00064934]
[1727234664228,0.6400561,64339.0,64338.0,0.00064934]
[1727234665129,0.438509,64339.0,64338.0,0.00064934]
[1727234665323,0.63962093,64339.0,64338.0,0.00064934]
[1727234665521,0.80944391,64339.0,64338.0,0.00064934]
[1727234665739,0.64062093,64339.0,64338.0,0.00064934]
[1727234666140,0.81030596,64339.0,64338.0,0.00064934]
[1727234666937,0.81030596,64339.0,64338.0,0.00164934]
[1727234667140,0.88801496,64339.0,64338.0,0.00164934]
[1727234667431,2.03346472,64339.0,64338.0,0.00164934]
[1727234667735,2.03346472,64339.0,64312.0,0.9005]
[1727234667736,0.07772,64330.0,64318.0,0.109534]
[1727234667939,0.12336731,64319.0,64318.0,0.109534]
[1727234668136,0.14855978,64319.0,64318.0,0.34280449]
[1727234668633,0.14855978,64319.0,64318.0,0.34210062]
[1727234668634,0.13433828,64319.0,64318.0,0.34210062]
[1727234668827,0.56082927,64319.0,64318.0,0.34210062]
[1727234669235,0.49613828,64319.0,64318.0,0.37010062]
[1727234670027,0.49513828,64319.0,64318.0,0.35610062]
[1727234670226,0.49513828,64319.0,64318.0,0.37010062]
[1727234670227,0.61929472,64319.0,64318.0,0.37010062]
[1727234671040,0.43051817,64319.0,64318.0,0.44772669]
[1727234671239,0.43051817,64319.0,64318.0,0.37010062]
[1727234671929,0.42951817,64319.0,64318.0,0.35610062]
[1727234672234,0.43051817,64319.0,64318.0,0.36910062]
[1727234672832,0.12415644,64319.0,64318.0,0.36910062]
[1727234673736,0.12415644,64319.0,64318.0,0.72990062]
[1727234676144,0.12415644,64319.0,64318.0,0.80752669]
[1727234676741,0.12415644,64319.0,64318.0,0.89832899]
[1727234676963,0.12415644,64319.0,64318.0,0.80752669]
[1727234677136,0.001,64319.0,64318.0,0.89834158]
[1727234677746,0.001,64319.0,64318.0,0.82071551]
[1727234678044,0.001,64319.0,64318.0,0.89809044]
[1727234678248,0.001,64319.0,64318.0,0.82071551]
[1727234682746,0.001,64319.0,64318.0,0.45987726]
[1727234682947,0.001,64319.0,64318.0,0.82067726]
[1727234683554,0.001,64319.0,64318.0,0.45987726]
[1727234683851,0.001,64319.0,64318.0,0.82067726]
[1727234684647,0.0036,64326.0,64322.0,0.07773]
[1727234684846,0.077723,64327.0,64325.0,0.06194943]
[1727234685757,0.077725,64326.0,64325.0,0.06194943]
[1727234685944,0.077725,64326.0,64325.0,0.007]
[1727234686645,0.077725,64326.0,64325.0,0.012]
[1727234687241,0.077725,64326.0,64325.0,0.06694943]
[1727234687468,0.077725,64326.0,64325.0,0.07394943]
[1727234688755,0.077725,64326.0,64325.0,0.07399313]
[1727234689151,0.077725,64326.0,64325.0,0.013]
[1727234692859,0.077725,64326.0,64325.0,0.18150415]
[1727234693253,0.077725,64326.0,64325.0,0.10406736]
[1727234693651,0.077725,64326.0,64325.0,0.18166824]
[1727234693958,0.077725,64326.0,64325.0,0.09060088]
[1727234694154,0.077725,64326.0,64325.0,0.18171796]
[1727234694380,0.077725,64326.0,64325.0,0.10411708]
[1727234694745,0.077725,64326.0,64325.0,0.18173631]
[1727234694949,0.438525,64326.0,64325.0,0.09062261]
[1727234695349,0.438525,64326.0,64325.0,0.18183774]
[1727234696246,0.438525,64326.0,64325.0,0.10421513]
[1727234696563,0.077725,64326.0,64325.0,0.10421513]
[1727234700154,0.077725,64326.0,64325.0,0.19712035]
[1727234700454,0.077725,64326.0,64325.0,0.10421513]
[1727234700883,0.077725,64326.0,64325.0,0.10412826]
[1727234701853,0.077725,64326.0,64325.0,0.19737699]
[1727234702062,0.077725,64326.0,64325.0,0.10412826]
[1727234702664,0.167725,64326.0,64325.0,0.10412826]
[1727234702860,0.167725,64326.0,64325.0,0.19738697]
[1727234703257,0.167725,64326.0,64325.0,0.10412826]
[1727234703660,0.167725,64326.0,64325.0,0.19739829]
[1727234703964,0.65243363,64326.0,64325.0,0.013]
[1727234704165,0.155456,64323.0,64322.0,0.0407081]
[1727234704464,0.155456,64323.0,64308.0,0.36172]
[1727234704465,0.09,64323.0,64314.0,0.09327003]
[1727234704672,0.077743,64311.0,64310.0,0.09327003]
[1727234704962,0.09,64311.0,64304.0,0.09327003]
[1727234705266,0.077756,64300.0,64299.0,0.09327003]
[1727234705458,0.4508,64300.0,64295.0,0.09327003]
[1727234705760,0.4508,64300.0,64292.0,0.00233296]
[1727234705761,0.077761,64296.0,64292.0,0.00233296]
[1727234705956,0.1203,64295.0,64293.0,0.09082282]
[1727234706156,0.1203,64295.0,64292.0,0.00233296]
[1727234706369,0.1063,64295.0,64292.0,0.00233296]
[1727234706558,0.0023,64295.0,64292.0,0.00233296]
[1727234706753,0.09,64293.0,64292.0,0.00233296]
[1727234707553,0.09,64293.0,64292.0,0.01533296]
[1727234707967,0.4508,64293.0,64292.0,0.01533296]
[1727234709263,0.4518,64293.0,64292.0,0.00933296]
[1727234709659,0.4528,64293.0,64292.0,0.00933296]
[1727234710377,0.5028,64293.0,64292.0,0.00933296]
[1727234711762,0.142,64293.0,64292.0,0.00933296]
[1727234711965,0.580565,64293.0,64292.0,0.00933296]
[1727234712159,0.580565,64293.0,64292.0,0.007]
[1727234719966,0.65833,64293.0,64292.0,0.007]
[1727234720675,1.12493,64293.0,64292.0,0.007]
[1727234720865,1.72493,64293.0,64292.0,0.007]
[1727234724278,2.08573,64293.0,64292.0,0.007]
[1727234725878,2.163495,64293.0,64292.0,0.007]
[1727234726275,0.155554,64283.0,64282.0,0.0036]
[1727234726470,0.077783,64278.0,64277.0,0.0306]
[1727234726777,0.295566,64278.0,64277.0,0.0306]
[1727234727673,0.288566,64278.0,64277.0,0.0306]
[1727234728177,0.287566,64278.0,64277.0,0.0306]
[1727234728378,0.288566,64278.0,64277.0,0.0376]
[1727234729175,0.649366,64278.0,64277.0,0.0376]
[1727234729476,0.571583,64278.0,64277.0,0.0376]
[1727234729982,0.571583,64278.0,64277.0,0.0306]
[1727234730275,0.572583,64278.0,64277.0,0.0306]
[1727234732084,0.572583,64278.0,64273.0,0.0317]
[1727234732085,0.077788,64274.0,64273.0,0.0317]
[1727234733783,0.078788,64274.0,64273.0,0.0317]
[1727234733979,0.079788,64274.0,64273.0,0.0317]
[1727234736277,0.169788,64274.0,64273.0,0.0317]
[1727234742482,0.169788,64274.0,64273.0,0.20093384]
[1727234742684,0.169788,64274.0,64273.0,0.10929253]
[1727234742883,0.169788,64274.0,64273.0,0.20094308]
[1727234743086,0.169788,64274.0,64273.0,0.12335055]
[1727234743395,0.169788,64274.0,64273.0,0.20094336]
[1727234743587,0.169788,64274.0,64273.0,0.12335055]
[1727234743798,0.169788,64274.0,64273.0,0.20095179]
[1727234744620,0.169788,64274.0,64273.0,0.12335055]
[1727234749589,0.169788,64274.0,64273.0,0.21624477]
[1727234750501,0.169788,64274.0,64273.0,0.12335055]
[1727234750888,0.169788,64274.0,64273.0,0.21662839]
[1727234751586,0.169788,64274.0,64273.0,0.12335055]
[1727234753696,0.169788,64274.0,64273.0,0.0317]
[1727234753902,0.169788,64274.0,64273.0,0.12350405]
[1727234754503,0.169788,64274.0,64273.0,0.23297174]
[1727234756199,0.169788,64274.0,64273.0,0.12350405]
[1727234758810,0.169788,64274.0,64273.0,0.12350401]
[1727234761800,0.169788,64274.0,64273.0,0.23294289]
[1727234763624,0.169788,64274.0,64273.0,0.20124289]
[1727234763794,0.169788,64274.0,64273.0,0.09180401]